bitfinex-derivatives/quotes_SOLF0:USTF0_20250124
["timestamp","ask_amount","ask_price","bid_price","bid_amount"]
[1737738970407,9.03418605,263.08,263.03,0.02781854]
[1737738970606,3.8007,263.07,263.03,0.02781854]
[1737738971108,9.03418605,263.08,263.03,0.02781854]
[1737738971601,9.03418605,263.12,263.03,0.02781854]
[1737738971901,9.03418605,263.2,263.01,9.03418605]
[1737738972108,9.03418605,263.2,263.05,0.02636105]
[1737738972407,12.83298605,263.2,263.05,0.02636105]
[1737738972608,9.03418605,263.2,263.05,0.02636105]
[1737738972803,9.03418605,263.24,263.05,9.0605471]
[1737738973002,9.03418605,263.24,263.06,2.5639]
[1737738973309,9.03418605,263.24,263.12,0.02893846]
[1737738973505,9.03418605,263.2,263.12,0.02893846]
[1737738973710,14.42448914,263.22,263.06,2.5639]
[1737738974010,3.7992,263.17,263.13,0.02654825]
[1737738974709,14.42448914,263.22,263.13,0.02654825]
[1737738974710,3.7991,263.18,263.13,0.02654825]
[1737738976710,14.42448914,263.22,263.13,0.02654825]
[1737738977411,3.7984,263.23,263.13,0.02654825]
[1737738977611,14.42448914,263.27,263.16,3.7993]
[1737738978114,14.42448914,263.27,263.19,0.0240605]
[1737738978310,3.7983,263.23,263.19,0.0240605]
[1737738978503,14.42448914,263.27,263.19,0.0240605]
[1737738978713,3.7988,263.2,263.19,0.0240605]
[1737738979907,14.42448914,263.27,263.06,1.2364]
[1737738980112,0.67841159,263.26,263.04,14.42448914]
[1737738980414,14.42448914,263.21,262.99,14.42448914]
[1737738980707,14.42448914,263.21,262.97,1.2529]
[1737738980708,0.67826023,263.2,262.97,1.2529]
[1737738981105,0.02711974,263.11,263.06,0.02796102]
[1737738981809,0.02711974,263.11,263.06,3.82876102]
[1737738982113,0.02711974,263.11,263.06,0.02796102]
[1737738983813,0.02711974,263.11,263.07,3.8006]
[1737738984514,0.02711974,263.11,263.08,3.8005]
[1737738985016,0.02711974,263.11,263.07,3.8006]
[1737738986217,0.02711974,263.11,263.06,0.02796102]
[1737738986619,3.8006,263.07,263.06,0.02796102]
[1737738987516,0.02711974,263.11,263.06,0.02796102]
[1737738988220,3.82721974,263.11,263.06,0.02796102]
[1737738988811,0.02711974,263.11,263.06,0.02796102]
[1737738989408,3.8003,263.1,263.06,0.02796102]
[1737738990110,3.8006,263.07,263.06,0.02796102]
[1737738990917,3.8005,263.09,263.06,0.02796102]
[1737738991516,14.45160888,263.11,262.89,2.4279]
[1737738991717,14.42448914,263.11,262.89,2.4279]
[1737738992718,0.02882531,263.03,262.97,0.0281795]
[1737738992914,0.02882531,263.03,263.0,3.8016]
[1737738994319,0.02882531,263.03,263.02,3.8014]
[1737738995320,2.5477,263.15,263.05,3.8008]
[1737738995620,14.42448914,263.21,262.98,1.2715]
[1737738995808,9.01547853,263.2,263.01,9.01547853]
[1737738996009,9.01547853,263.2,263.02,1.2949]
[1737738996209,3.7998,263.13,263.02,1.2949]
[1737738996409,9.01547853,263.2,263.06,3.8008]
[1737738996619,0.02778515,263.1,263.06,3.8008]
[1737738996919,0.02767781,263.11,263.05,0.02427832]
[1737738997119,9.01547853,263.12,262.98,5.0734]
[1737738997120,9.01547853,263.12,262.98,1.2715]
[1737738997318,0.02713425,263.11,263.05,0.02432732]
[1737738997520,3.8003,263.1,263.05,0.02432732]
[1737738997819,0.02713425,263.11,263.05,0.02432732]
[1737738999018,0.02713425,263.11,263.1,3.8002]
[1737739000121,9.01547853,263.24,263.14,3.7995]
[1737739000720,9.01547853,263.24,263.05,9.01547853]
[1737739001217,9.01547853,263.24,263.12,0.02530835]
[1737739001620,3.7987,263.21,263.12,0.02530835]
[1737739001823,14.42028194,263.27,263.12,0.02530835]
[1737739002320,14.42028194,263.27,263.17,0.02579044]
[1737739002523,3.7982,263.24,263.17,0.02579044]
[1737739002821,14.42028194,263.27,263.17,0.02579044]
[1737739003220,3.7986,263.22,263.17,0.02579044]
[1737739003717,14.42028194,263.27,263.17,0.02579044]
[1737739003921,3.7987,263.21,263.17,0.02579044]
[1737739004722,3.7988,263.2,263.17,0.02579044]
[1737739005124,14.42028194,263.27,263.17,0.02579044]
[1737739005421,0.68147638,263.26,263.17,0.02579044]
[1737739006015,3.7988,263.21,263.17,0.02579044]
[1737739006621,14.42028194,263.27,263.17,0.02579044]
[1737739006822,3.7988,263.2,263.17,0.02579044]
[1737739008424,14.42028194,263.27,263.17,0.02579044]
[1737739008729,3.799,263.19,263.17,0.02579044]
[1737739009430,3.7988,263.21,263.17,0.02579044]
[1737739009730,14.42028194,263.27,263.17,0.02579044]
[1737739009933,0.68245651,263.26,263.17,0.02579044]
[1737739012330,3.7984,263.23,263.17,0.02579044]
[1737739012526,14.42028194,263.27,263.17,0.02579044]
[1737739012726,0.68240921,263.26,263.17,0.02579044]
[1737739013030,3.7983,263.24,263.17,3.82499044]
[1737739013531,14.42028194,263.27,263.17,0.02579044]
[1737739013725,3.798,263.26,263.19,3.7989]
[1737739014128,3.7981,263.25,263.17,3.82489044]
[1737739014732,3.7981,263.25,263.18,3.799]
[1737739015135,14.42028194,263.27,263.17,0.02579044]
[1737739015429,14.42028194,263.27,263.2,3.7987]
[1737739016030,14.42028194,263.32,263.17,0.02579044]
[1737739016236,0.68224642,263.31,263.09,1.2281]
[1737739016532,14.42028194,263.32,263.22,0.02798648]
[1737739017134,14.42028194,263.37,263.22,0.02798648]
[1737739017433,7.80694822,263.43,263.2,14.42028194]
[1737739017626,3.7959,263.4,263.32,3.797]
[1737739017830,0.68205854,263.39,263.32,3.797]
[1737739018030,0.68205854,263.39,263.33,0.02723244]
[1737739018335,7.80694822,263.44,263.33,0.02723244]
[1737739018530,0.68203423,263.43,263.33,0.02723244]
[1737739018832,3.7962,263.38,263.33,0.02723244]
[1737739019331,14.42028194,263.43,263.33,0.02723244]
[1737739019632,3.7967,263.35,263.21,1.2169]
[1737739020431,1.329,263.46,263.22,14.42028194]
[1737739020432,14.42028194,263.43,263.22,14.42028194]
[1737739020631,0.68209047,263.42,263.22,14.42028194]
[1737739020834,0.02490503,263.35,263.3,0.02903823]
[1737739022537,3.82160503,263.35,263.3,0.02903823]
[1737739023739,3.7968,263.34,263.3,0.02903823]
[1737739024239,0.02490503,263.35,263.3,0.02903823]
[1737739026542,0.02490503,263.35,263.32,3.797]
[1737739026742,0.02490503,263.35,263.3,0.02903823]
[1737739028543,3.82150503,263.35,263.3,0.02903823]
[1737739028843,0.02490503,263.35,263.3,0.02903823]
[1737739029246,0.70710573,263.35,263.3,0.02903823]
[1737739029639,0.02490503,263.35,263.3,0.02903823]
[1737739029843,9.0011615,263.32,263.16,2.5721]
[1737739030147,0.68183679,263.31,263.19,3.7989]
[1737739030539,9.0011615,263.32,263.16,2.5721]
[1737739030746,0.68195736,263.31,263.16,2.5721]
[1737739031048,0.02525099,263.26,263.21,0.02609532]
[1737739034551,0.02525099,263.26,263.23,3.7983]
[1737739035352,0.02525099,263.26,263.21,0.02609532]
[1737739036351,3.82315099,263.26,263.21,0.02609532]
[1737739036551,0.02525099,263.26,263.21,0.02609532]
[1737739036847,0.02525099,263.26,263.23,3.7983]
[1737739037946,0.02525099,263.26,263.21,0.02609532]
[1737739038851,0.02525099,263.26,263.24,3.7981]
[1737739039249,0.02525099,263.26,263.25,3.798]
[1737739043056,0.02525099,263.26,263.21,0.02609532]
[1737739043549,3.7984,263.23,263.21,0.02609532]
[1737739043747,0.02525099,263.26,263.21,0.02609532]
[1737739044854,3.82325099,263.26,263.21,0.02609532]
[1737739045753,0.02525099,263.26,263.21,3.82459532]
[1737739046352,0.02525099,263.26,263.21,0.02609532]
[1737739046559,9.0011615,263.25,263.21,0.02609532]
[1737739047456,0.02525099,263.26,263.21,0.02609532]
[1737739047657,3.7985,263.22,263.21,0.02609532]
[1737739047957,9.0011615,263.25,263.08,1.22]
[1737739048156,3.7992,263.17,263.09,3.8002]
[1737739048357,9.0011615,263.19,263.05,1.288]
[1737739048749,3.7999,263.12,263.05,1.288]
[1737739048952,3.7999,263.12,263.04,5.076]
[1737739049254,3.8001,263.11,263.08,0.02521006]
[1737739049451,12.8012615,263.11,263.08,0.02521006]
[1737739049655,9.0011615,263.11,263.08,0.02521006]
[1737739050056,9.0011615,263.15,263.08,0.02521006]
[1737739051063,12.8007615,263.15,263.08,0.02521006]
[1737739051959,3.7997,263.14,263.08,0.02521006]
[1737739052160,9.0011615,263.15,263.08,0.02521006]
[1737739052660,0.02843509,263.17,263.08,0.02521006]
[1737739052964,0.02843509,263.17,263.1,4.03929]
[1737739053165,0.02843509,263.17,263.1,0.23919]
[1737739054060,3.7995,263.15,263.1,0.23919]
[1737739054560,9.02959659,263.17,263.1,0.23919]
[1737739055463,12.82889659,263.17,263.1,0.23919]
[1737739055866,0.02843509,263.17,263.1,0.23919]
[1737739056565,0.02843509,263.17,263.11,3.8]
[1737739058065,0.02843509,263.17,263.12,3.7999]
[1737739059162,5.79124822,263.29,263.28,3.7976]
[1737739059363,5.79124822,263.29,263.16,9.0011615]
[1737739059966,5.79124822,263.29,263.24,3.7982]
[1737739060166,5.79124822,263.29,263.16,9.0011615]
[1737739060368,5.82016308,263.29,263.24,0.02564828]
[1737739061468,0.02891486,263.29,263.24,0.02564828]
[1737739062567,0.02891486,263.29,263.28,3.7976]
[1737739067363,1.486e-05,263.29,263.28,3.7976]
[1737739068570,1.486e-05,263.29,263.28,12.7987615]
[1737739070071,1.486e-05,263.29,263.28,3.7976]
[1737739071973,1.486e-05,263.29,263.25,2.619]
[1737739072173,1.486e-05,263.29,263.24,0.02564828]
[1737739072766,1.486e-05,263.29,263.28,3.7976]
[1737739074373,1.486e-05,263.29,263.26,3.7979]
[1737739074771,1.486e-05,263.29,263.24,0.02564828]
[1737739074973,1.486e-05,263.29,263.27,3.7977]
[1737739075675,1.486e-05,263.29,263.28,3.7976]
[1737739079873,1.486e-05,263.29,263.27,3.7978]
[1737739080269,1.486e-05,263.29,263.24,0.02564828]
[1737739080473,1.486e-05,263.29,263.27,3.7978]
[1737739080670,1.486e-05,263.29,263.24,0.02564828]
[1737739081472,1.486e-05,263.29,263.28,3.7976]
[1737739082578,1.486e-05,263.29,263.28,12.7987615]
[1737739082785,4.47729259,263.45,263.39,3.7959]
[1737739083080,3.7953,263.45,263.39,3.7959]
[1737739083482,12.7961615,263.46,263.39,3.7959]
[1737739084084,0.02519493,263.45,263.4,0.0275829]
[1737739084284,0.70708504,263.45,263.4,0.0275829]
[1737739084479,9.0011615,263.42,263.25,11.4910615]
[1737739084679,3.7964,263.37,263.29,3.7974]
[1737739084880,3.7964,263.37,263.21,9.0011615]
[1737739084881,9.0011615,263.38,263.21,9.0011615]
[1737739085383,3.7966,263.35,263.28,3.7975]
[1737739085683,0.02440942,263.34,263.29,0.02412717]
[1737739086084,0.02440942,263.34,263.29,3.82152717]
[1737739086285,0.02440942,263.34,263.29,0.02412717]
[1737739087584,0.02440942,263.34,263.3,3.7973]
[1737739087786,0.02440942,263.34,263.29,0.02412717]
[1737739088185,0.02440942,263.34,263.29,3.82152717]
[1737739088483,0.02440942,263.34,263.29,0.02412717]
[1737739090385,3.82120942,263.34,263.29,0.02412717]
[1737739090781,3.7969,263.33,263.29,0.02412717]
[1737739091684,0.02440942,263.34,263.29,0.02412717]
[1737739091887,0.02440942,263.34,263.31,3.7971]
[1737739093386,0.02440942,263.34,263.29,0.02412717]
[1737739093581,0.02440942,263.34,263.33,3.7969]
[1737739094686,0.02440942,263.34,263.31,3.7972]
[1737739094986,0.02440942,263.34,263.29,0.02412717]
[1737739095490,9.02557092,263.34,263.29,0.02412717]
[1737739095693,9.0011615,263.3,263.17,0.24008]
[1737739096587,3.7976,263.29,263.21,3.7986]
[1737739096789,9.0011615,263.3,263.17,0.24008]
[1737739096988,0.02467341,263.28,263.22,0.02879876]
[1737739099589,3.7979,263.26,263.22,0.02879876]
[1737739099788,0.02467341,263.28,263.22,0.02879876]
[1737739100692,3.7978,263.27,263.22,0.02879876]
[1737739101288,3.7982,263.24,263.22,0.02879876]
[1737739101691,9.0011615,263.26,263.22,0.02879876]
[1737739102895,9.0011615,263.26,263.17,0.24008]
[1737739103196,3.7991,263.18,263.17,0.24008]
[1737739103396,9.0011615,263.19,263.06,3.8007]
[1737739103594,9.0011615,263.19,263.03,74.38823466]
[1737739103896,1.3007,263.27,263.07,9.0011615]
[1737739103897,9.0011615,263.23,263.07,9.0011615]
[1737739104198,0.02502683,263.14,263.08,0.02627156]
[1737739105304,0.02502683,263.14,263.13,3.7998]
[1737739106006,10.3018615,263.27,263.18,3.799]
[1737739106304,3.798,263.26,263.18,3.799]
[1737739107408,0.02692655,263.25,263.19,0.02575554]
[1737739109109,0.02692655,263.25,263.19,3.82465554]
[1737739109611,0.02692655,263.25,263.2,3.7988]
[1737739109810,0.02692655,263.25,263.19,0.02575554]
[1737739111606,3.7985,263.22,263.19,0.02575554]
[1737739111800,0.02692655,263.25,263.19,0.02575554]
[1737739112208,3.7983,263.24,263.19,0.02575554]
[1737739112507,0.02692655,263.25,263.19,0.02575554]
[1737739112713,3.7985,263.22,263.19,0.02575554]
[1737739112912,0.02692655,263.25,263.19,0.02575554]
[1737739114115,3.7988,263.2,263.19,0.02575554]
[1737739114413,9.0011615,263.23,263.19,0.02575554]
[1737739114615,3.82512655,263.25,263.19,0.02575554]
[1737739114807,0.02692655,263.25,263.19,0.02575554]
[1737739115008,0.02692655,263.25,263.22,3.7985]
[1737739115211,0.02692655,263.25,263.19,0.02575554]
[1737739118313,0.02692655,263.25,263.24,3.7982]
[1737739118912,0.02692655,263.25,263.22,3.7984]
[1737739119114,0.02692655,263.25,263.19,0.02575554]
[1737739119517,0.02692655,263.25,263.21,3.7986]
[1737739119716,0.02692655,263.25,263.19,0.02575554]
[1737739120115,0.02692655,263.25,263.24,3.7982]
[1737739120317,9.0011615,263.35,263.19,0.02575554]
[1737739120517,9.0011615,263.31,263.13,3.8924]
[1737739120821,9.0011615,263.31,263.23,3.7982]
[1737739121218,3.7978,263.27,263.23,3.7982]
[1737739121421,3.7978,263.27,263.24,0.02749033]
[1737739122322,9.0011615,263.27,263.24,0.02749033]
[1737739122926,3.798,263.25,263.24,0.02749033]
[1737739123724,12.7990615,263.27,263.24,0.02749033]
[1737739124427,12.7989615,263.27,263.24,0.02749033]
[1737739125623,9.0011615,263.27,263.24,0.02749033]
[1737739125829,0.02693273,263.3,263.24,0.02749033]
[1737739126429,0.02693273,263.3,263.27,3.7977]
[1737739126826,0.02693273,263.3,263.24,0.02749033]
[1737739127129,0.02693273,263.3,263.29,3.7975]
[1737739133533,3.7963,263.37,263.32,3.7969]
[1737739134733,0.02527729,263.37,263.32,3.82088243]
[1737739135331,0.02527729,263.37,263.33,3.7969]
[1737739136029,0.02527729,263.37,263.32,0.02398243]
[1737739136234,9.0011615,263.36,263.32,0.02398243]
[1737739136833,12.7976615,263.36,263.32,0.02398243]
[1737739137333,0.02527729,263.37,263.32,0.02398243]
[1737739138937,3.82157729,263.37,263.32,0.02398243]
[1737739139134,0.02527729,263.37,263.32,0.02398243]
[1737739139537,3.7966,263.35,263.32,0.02398243]
[1737739140433,3.82167729,263.37,263.32,0.02398243]
[1737739140834,3.7965,263.36,263.32,0.02398243]
[1737739141237,0.02527729,263.37,263.32,0.02398243]
[1737739141436,0.02527729,263.37,263.35,3.7966]
[1737739141736,0.02527729,263.37,263.32,0.02398243]
[1737739142133,0.02527729,263.37,263.34,3.7966]
[1737739142738,3.82167729,263.37,263.32,0.02398243]
[1737739143039,0.02527729,263.37,263.32,0.02398243]
[1737739143434,3.7966,263.35,263.32,0.02398243]
[1737739144137,0.02527729,263.37,263.34,3.7967]
[1737739145141,0.02527729,263.37,263.32,3.82088243]
[1737739145438,0.02527729,263.37,263.32,0.02398243]
[1737739146630,0.02527729,263.37,263.34,3.7967]
[1737739146835,0.02527729,263.37,263.32,0.02398243]
[1737739147540,3.7965,263.36,263.32,0.02398243]
[1737739149538,0.02527729,263.37,263.32,0.02398243]
[1737739150343,0.02527729,263.37,263.32,3.82098243]
[1737739150537,0.02527729,263.37,263.32,0.02398243]
[1737739152142,3.82157729,263.37,263.32,0.02398243]
[1737739153040,0.02527729,263.37,263.34,3.7967]
[1737739153441,0.02527729,263.37,263.32,0.02398243]
[1737739153634,0.02527729,263.37,263.36,3.7965]
[1737739154238,0.02527729,263.37,263.35,3.7966]
[1737739154842,0.02527729,263.37,263.34,3.7967]
[1737739155442,0.02527729,263.37,263.32,0.02398243]
[1737739155642,0.02527729,263.37,263.35,3.7965]
[1737739157647,5.76106405,263.36,263.32,0.02398243]
[1737739158139,5.76106405,263.33,263.32,0.02398243]
[1737739159646,9.00425596,263.35,263.32,0.02398243]
[1737739160243,3.7969,263.33,263.32,0.02398243]
[1737739160942,3.7968,263.34,263.32,0.02398243]
[1737739161447,12.80085596,263.35,263.32,0.02398243]
[1737739161643,0.02527729,263.37,263.32,0.02398243]
[1737739163349,3.7967,263.35,263.32,0.02398243]
[1737739163647,0.02527729,263.37,263.32,0.02398243]
[1737739163951,3.7968,263.34,263.27,3.58162243]
[1737739164547,9.00425596,263.31,263.18,1.2167]
[1737739165150,3.82689987,263.27,263.22,0.02803453]
[1737739165455,0.02909987,263.27,263.22,0.02803453]
[1737739166151,0.02909987,263.27,263.25,3.798]
[1737739166347,0.02909987,263.27,263.22,0.02803453]
[1737739166854,0.02909987,263.27,263.26,3.7979]
[1737739169261,9.00425596,263.39,263.29,3.7973]
[1737739169558,3.7966,263.35,263.29,3.7973]
[1737739170359,3.82015255,263.35,263.29,3.82280908]
[1737739170658,0.02355255,263.35,263.29,3.82280908]
[1737739170858,0.02355255,263.35,263.29,0.02550908]
[1737739171359,0.02355255,263.35,263.31,3.7972]
[1737739171959,0.02355255,263.35,263.29,0.02550908]
[1737739172857,0.02355255,263.35,263.32,3.797]
[1737739173058,0.02355255,263.35,263.29,0.02550908]
[1737739173256,0.02355255,263.35,263.34,3.7967]
[1737739176756,9.00425596,263.43,263.29,0.02550908]
[1737739176959,1.2375,263.48,263.4,3.7958]
[1737739176960,9.00425596,263.47,263.4,3.7958]
[1737739177360,9.00425596,263.47,263.29,9.00425596]
[1737739177561,9.00425596,263.47,263.38,3.7961]
[1737739177761,9.00425596,263.47,263.29,9.00425596]
[1737739177961,3.7955,263.43,263.4,0.02814876]
[1737739178162,9.00425596,263.47,263.4,0.02814876]
[1737739178362,0.68187381,263.46,263.4,0.02814876]
[1737739179466,0.68187381,263.46,263.41,3.7957]
[1737739179761,5.75684326,263.44,263.41,3.7957]
[1737739180768,5.75684326,263.44,263.4,0.02814876]
[1737739181261,5.75684326,263.41,263.4,0.02814876]
[1737739184163,9.55254326,263.41,263.4,0.02814876]
[1737739185171,3.7962,263.38,263.31,3.7972]
[1737739185366,5.75684326,263.35,263.31,3.7972]
[1737739185572,9.55354326,263.35,263.28,5.1386]
[1737739185770,9.55354326,263.35,263.28,3.7976]
[1737739185971,5.75684326,263.35,263.25,5.75684326]
[1737739186370,0.02423212,263.33,263.28,0.02414495]
[1737739187271,5.75684326,263.29,263.28,0.02414495]
[1737739188470,9.55434326,263.29,263.28,0.02414495]
[1737739189066,5.75684326,263.29,263.28,0.02414495]
[1737739189273,5.75684326,263.32,263.28,0.02414495]
[1737739189471,0.02423212,263.33,263.28,0.02414495]
[1737739191072,3.7974,263.3,263.28,0.02414495]
[1737739191371,5.75684326,263.3,263.28,0.02414495]
[1737739191570,3.7976,263.28,263.23,0.24115]
[1737739191774,5.78107538,263.33,263.23,0.24115]
[1737739191967,5.78107538,263.33,263.24,5.75684326]
[1737739192777,9.57797538,263.33,263.27,3.7977]
[1737739193073,5.78107538,263.33,263.26,0.02906405]
[1737739193273,5.78107538,263.33,263.26,3.82686405]
[1737739193274,3.797,263.32,263.26,3.82686405]
[1737739193874,3.7974,263.3,263.26,0.02906405]
[1737739194779,3.7974,263.3,263.26,3.82686405]
[1737739196080,3.7972,263.31,263.27,3.7977]
[1737739197874,3.797,263.32,263.28,3.7976]
[1737739199973,3.797,263.32,263.26,0.02906405]
[1737739199974,0.02423212,263.33,263.32,3.797]
[1737739200380,3.212e-05,263.33,263.32,3.797]
[1737739200676,1.2375,263.48,263.28,9.00248681]
[1737739200677,0.68197833,263.43,263.28,9.00248681]
[1737739200881,0.68197833,263.47,263.28,9.00248681]
[1737739201180,10.23998681,263.48,263.28,9.00248681]
[1737739201410,0.68196013,263.47,263.28,9.00248681]
[1737739201779,0.02747948,263.41,263.35,0.02751071]
[1737739202579,0.02747948,263.41,263.37,3.7963]
[1737739202982,0.02747948,263.41,263.35,0.02751071]
[1737739204584,0.02747948,263.41,263.37,3.7962]
[1737739205782,0.02747948,263.41,263.35,0.02751071]
[1737739206384,0.02747948,263.41,263.37,3.7962]
[1737739207782,0.02747948,263.41,263.35,0.02751071]
[1737739207987,12.87538681,263.58,263.4,9.00248681]
[1737739209182,12.87538681,263.58,263.46,0.02648575]
[1737739209487,9.00248681,263.54,263.46,0.02648575]
[1737739209789,3.7941,263.53,263.46,0.02648575]
[1737739210389,3.7942,263.52,263.46,0.02648575]
[1737739211292,3.7943,263.51,263.46,0.02648575]
[1737739211986,3.7945,263.5,263.46,0.02648575]
[1737739212192,9.00248681,263.5,263.46,0.02648575]
[1737739212692,3.7949,263.47,263.46,0.02648575]
[1737739213686,9.55099482,263.47,263.46,0.02648575]
[1737739213892,5.75609482,263.47,263.34,5.75609482]
[1737739214087,3.7958,263.41,263.34,5.75609482]
[1737739214294,5.75609482,263.44,263.34,5.75609482]
[1737739214790,3.7957,263.41,263.34,5.75609482]
[1737739214991,5.75609482,263.41,263.31,9.55319482]
[1737739215192,3.7962,263.39,263.35,0.02558107]
[1737739217094,0.02587614,263.4,263.35,0.02558107]
[1737739217688,0.02587614,263.4,263.36,3.7964]
[1737739218494,0.02587614,263.4,263.35,0.02558107]
[1737739218696,9.02436612,263.4,263.35,0.02558107]
[1737739219895,3.7961,263.39,263.35,0.02558107]
[1737739220100,9.02436612,263.4,263.35,0.02558107]
[1737739222299,0.02587614,263.4,263.35,0.02558107]
[1737739222803,0.02587614,263.4,263.36,3.7964]
[1737739223001,0.02587614,263.4,263.35,0.02558107]
[1737739223403,0.02587614,263.4,263.37,3.7963]
[1737739223602,0.02587614,263.4,263.35,0.02558107]
[1737739224204,0.02587614,263.4,263.37,3.7962]
[1737739224703,0.02587614,263.4,263.35,0.02558107]
[1737739224910,0.68191632,263.46,263.35,0.02558107]
[1737739225104,8.99848998,263.52,263.35,3.89358107]
[1737739225105,0.68180364,263.51,263.35,3.89358107]
[1737739225300,0.68178614,263.5,263.42,3.7955]
[1737739225500,0.68178614,263.51,263.42,3.7955]
[1737739225706,0.68178614,263.51,263.35,3.868]
[1737739225707,8.99848998,263.48,263.35,3.868]
[1737739226010,3.7952,263.45,263.38,3.7961]
[1737739226209,3.7952,263.45,263.39,0.02677283]
[1737739226414,8.99848998,263.48,263.39,0.02677283]
[1737739226613,3.7951,263.46,263.39,0.02677283]
[1737739226816,8.99848998,263.48,263.39,0.02677283]
[1737739227018,3.7943,263.51,263.43,3.7954]
[1737739227307,0.68175886,263.5,263.35,3.868]
[1737739227507,0.68175886,263.51,263.44,0.02603692]
[1737739227715,3.7952,263.45,263.44,0.02603692]
[1737739228115,8.99848998,263.48,263.44,0.02603692]
[1737739228313,4.47684598,263.47,263.44,0.02603692]
[1737739228516,3.795,263.47,263.44,0.02603692]
[1737739228709,8.99848998,263.48,263.44,0.02603692]
[1737739229014,3.795,263.46,263.44,0.02603692]
[1737739229214,8.99848998,263.48,263.44,0.02603692]
[1737739229512,0.6818427,263.47,263.44,0.02603692]
[1737739229914,4.4767427,263.47,263.44,0.02603692]
[1737739230213,3.7949,263.47,263.44,0.02603692]
[1737739230913,3.7951,263.46,263.44,0.02603692]
[1737739231916,3.7952,263.45,263.44,0.02603692]
[1737739232118,8.99848998,263.43,263.3,65.33736715]
[1737739232316,8.99848998,263.39,263.26,3.8153]
[1737739233415,0.02722864,263.35,263.3,0.02878188]
[1737739233611,12.77338998,263.47,263.29,8.99848998]
[1737739233812,0.02415945,263.35,263.31,3.7971]
[1737739234013,0.68189508,263.45,263.29,8.99848998]
[1737739234217,0.02722864,263.36,263.33,8.99848998]
[1737739234415,8.99848998,263.51,263.33,8.99848998]
[1737739234617,0.6818369,263.5,263.33,8.99848998]
[1737739234814,8.99848998,263.51,263.33,8.99848998]
[1737739235611,3.7946,263.49,263.42,3.7955]
[1737739235815,3.7946,263.49,263.39,0.02565322]
[1737739236114,8.99848998,263.51,263.39,0.02565322]
[1737739237216,8.99848998,263.51,263.44,3.7952]
[1737739237412,3.7942,263.52,263.37,8.99848998]
[1737739237617,3.7942,263.52,263.45,0.02456713]
[1737739238116,12.81758998,263.55,263.45,0.02456713]
[1737739238313,3.794,263.53,263.45,3.81966713]
[1737739238613,3.8191,263.55,263.45,0.02456713]
[1737739238818,8.99848998,263.59,263.45,0.02456713]
[1737739239321,8.99848998,263.63,263.45,9.02305711]
[1737739239518,0.68152088,263.62,263.45,8.99848998]
[1737739239818,0.68152088,263.62,263.51,0.0263693]
[1737739240021,3.7929,263.61,263.53,3.794]
[1737739240217,0.68152088,263.6,263.51,0.0263693]
[1737739241422,3.793,263.6,263.52,3.7941]
[1737739241715,8.99848998,263.63,263.51,0.0263693]
[1737739241922,3.7936,263.56,263.51,0.0263693]
[1737739242122,3.7936,263.56,263.48,3.7946]
[1737739242419,3.7936,263.56,263.51,0.02448043]
[1737739243723,8.99848998,263.59,263.51,0.02448043]
[1737739243918,3.7934,263.58,263.51,0.02448043]
[1737739244423,8.99848998,263.59,263.51,0.02448043]
[1737739245120,3.7935,263.57,263.51,0.02448043]
[1737739246019,8.99848998,263.63,263.51,0.02448043]
[1737739246223,8.99848998,263.63,263.42,1.2499]
[1737739246224,0.68150875,263.62,263.42,1.2499]
[1737739246423,3.7931,263.6,263.54,0.02565673]
[1737739246625,8.99848998,263.63,263.54,0.02565673]
[1737739246923,0.68148945,263.62,263.54,0.02565673]
[1737739247126,3.7933,263.58,263.54,0.02565673]
[1737739249328,8.99848998,263.73,263.54,0.02565673]
[1737739249518,0.68131414,263.72,263.53,1.254]
[1737739249725,0.68131414,263.72,263.61,0.02754661]
[1737739250225,3.7917,263.7,263.61,0.02754661]
[1737739250426,0.68131414,263.69,263.61,0.02754661]
[1737739250626,0.68131414,263.72,263.61,0.02754661]
[1737739250828,3.7917,263.69,263.61,0.02754661]
[1737739251023,0.68127972,263.68,263.61,0.02754661]
[1737739251724,3.7917,263.69,263.61,3.82034661]
[1737739252230,10.29268998,263.73,263.61,0.02754661]
[1737739252231,3.7915,263.71,263.61,0.02754661]
[1737739252429,0.68127458,263.7,263.61,0.02754661]
[1737739253231,0.68127458,263.7,263.62,3.7926]
[1737739253923,8.99848998,263.69,263.61,0.02754661]
[1737739254126,8.99848998,263.65,263.61,0.02754661]
[1737739254623,3.7925,263.64,263.61,0.02754661]
[1737739254927,8.99848998,263.65,263.61,0.02754661]
[1737739255128,12.79078998,263.65,263.61,0.02754661]
[1737739256326,8.99848998,263.65,263.61,0.02754661]
[1737739257427,8.99848998,263.69,263.61,0.02754661]
[1737739257628,0.68137722,263.68,263.61,0.02754661]
[1737739258128,3.7922,263.66,263.61,0.02754661]